fUSD/lending_fUSD_20250610
["ID","MTS","AMOUNT","RATE_DAILY","PERIOD"]
[365289738,1749582550232,-591.25924916,0.00016438,2]
[365289758,1749582632233,-533.27913237,0.00016424,2]
[365289759,1749582632243,-1200.0,0.00016437,2]
[365289760,1749582632252,-300.0,0.00016437,2]
[365289761,1749582632266,-2424.04075084,0.00016438,2]
[365289762,1749582632275,-490.0,0.00016438,2]
[365289763,1749582632285,-490.0,0.00016438,2]
[365289764,1749582632295,-490.0,0.00016438,2]
[365289765,1749582632306,-519.51753731,0.00016438,2]
[365289766,1749582632315,-490.0,0.00016438,2]
[365289767,1749582632324,-490.0,0.00016438,2]
[365289768,1749582632333,-490.0,0.00016438,2]
[365289769,1749582632343,-490.0,0.00016438,2]
[365289770,1749582632352,-490.0,0.00016438,2]
[365289771,1749582632361,-490.0,0.00016438,2]
[365289772,1749582632371,-490.0,0.00016438,2]
[365289773,1749582632379,-460.0,0.00016438,2]
[365289774,1749582632388,-490.0,0.00016438,2]
[365289775,1749582632398,-490.0,0.00016438,2]
[365289776,1749582632407,-490.0,0.00016438,2]
[365289777,1749582632418,-490.0,0.00016438,2]
[365289778,1749582632430,-490.0,0.00016438,2]
[365289779,1749582632439,-490.0,0.00016438,2]
[365289780,1749582632448,-51.71657802,0.00016602,2]
[365289781,1749582632462,-509.00342198,0.00016602,2]
[365289782,1749582632471,-490.0,0.00016602,2]
[365289783,1749582632481,-490.0,0.00016602,2]
[365289784,1749582632491,-644.43,0.00016602,2]
[365289785,1749582632501,-490.0,0.00016602,2]
[365289786,1749582632512,-470.0,0.00016602,2]
[365289787,1749582632521,-490.0,0.00016602,2]
[365289788,1749582632530,-490.0,0.00016602,2]
[365289789,1749582632540,-3015.3,0.00016602,2]
[365289790,1749582632549,-490.0,0.00016602,2]
[365289791,1749582632559,-490.0,0.00016602,2]
[365289792,1749582632569,-201.0,0.00016665,2]
[365289793,1749582632579,-560.72,0.00016767,2]
[365289794,1749582632588,-490.0,0.00016767,2]
[365289795,1749582632598,-490.0,0.00016767,2]
[365289796,1749582632608,-644.43,0.00016767,2]
[365289797,1749582632617,-490.0,0.00016767,2]
[365289798,1749582632627,-490.0,0.00016767,2]
[365289799,1749582632636,-490.0,0.00016767,2]
[365289800,1749582632645,-3015.3,0.00016767,2]
[365289801,1749582632654,-490.0,0.00016767,2]
[365289803,1749582632664,-490.0,0.00016767,2]
[365289805,1749582632673,-752.4202,0.00016904,2]
[365289807,1749582632683,-560.72,0.00016931,2]
[365289809,1749582632692,-490.0,0.00016931,2]
[365289811,1749582632702,-490.0,0.00016931,2]
[365289813,1749582632712,-644.43,0.00016931,2]
[365289815,1749582632721,-490.0,0.00016931,2]
[365289816,1749582632731,-490.0,0.00016931,2]
[365289817,1749582632742,-490.0,0.00016931,2]
[365289818,1749582632752,-3015.3,0.00016931,2]
[365289819,1749582632763,-490.0,0.00016931,2]
[365289820,1749582632772,-490.0,0.00016931,2]
[365289821,1749582632782,-560.72,0.00017095,2]
[365289822,1749582632793,-490.0,0.00017095,2]
[365289823,1749582632803,-490.0,0.00017095,2]
[365289824,1749582632813,-644.43,0.00017095,2]
[365289826,1749582632823,-490.0,0.00017095,2]
[365289828,1749582632832,-490.0,0.00017095,2]
[365289830,1749582632842,-3015.3,0.00017095,2]
[365289832,1749582632851,-490.0,0.00017095,2]
[365289834,1749582632861,-490.0,0.00017095,2]
[365289836,1749582632870,-2180.7572,0.0001716,2]
[365289838,1749582632880,-227.8016,0.0001716,2]
[365289840,1749582632889,-36058.946,0.00017224,2]
[365289842,1749582632899,-201.0,0.00017243,2]
[365289844,1749582632910,-560.72,0.0001726,2]
[365289846,1749582632919,-490.0,0.0001726,2]
[365289848,1749582632929,-490.0,0.0001726,2]
[365289851,1749582632939,-644.43,0.0001726,2]
[365289852,1749582632948,-490.0,0.0001726,2]
[365289855,1749582632957,-490.0,0.0001726,2]
[365289858,1749582632967,-3015.3,0.0001726,2]
[365289861,1749582632977,-507.51166415,0.0001726,2]
[365289864,1749582632986,-490.0,0.0001726,2]
[365289868,1749582632995,-1000.0,0.00017288,2]
[365289872,1749582633005,-156.42,0.00017305,2]
[365289876,1749582633014,-833.29909032,0.00017306,2]
[365289880,1749582633024,-175.41,0.00017312,2]
[365289884,1749582633034,-383.69,0.00017324,2]
[365289888,1749582633043,-150.0,0.00017348,7]
[365289892,1749582633053,-560.72,0.00017424,2]
[365289896,1749582633063,-490.0,0.00017424,2]
[365289900,1749582633073,-490.0,0.00017424,2]
[365289903,1749582633082,-644.43,0.00017424,2]
[365289906,1749582633092,-490.0,0.00017424,2]
[365289910,1749582633102,-490.0,0.00017424,2]
[365289915,1749582633113,-3015.3,0.00017424,2]
[365289919,1749582633124,-490.0,0.00017424,2]
[365289924,1749582633134,-560.72,0.00017589,2]
[365289927,1749582633145,-490.0,0.00017589,2]
[365289930,1749582633155,-490.0,0.00017589,2]
[365289933,1749582633165,-644.43,0.00017589,2]
[365289936,1749582633175,-185.30350984,0.00017589,2]
[365289939,1749582633187,-304.69649016,0.00017589,2]
[365289942,1749582633197,-490.0,0.00017589,2]
[365289945,1749582633207,-521.10350984,0.00017589,2]
[365289948,1749582633219,-2316.30819884,0.00017589,2]
[365289951,1749582633230,-177.88829132,0.00017589,2]
[365289954,1749582633240,-441.11108592,0.00017589,2]
[365289957,1749582633251,-48.88891408,0.00017589,2]
[365289960,1749582633272,-516.75,0.0001765,2]
[365289962,1749582633282,-799.0,0.00017653,2]
[365289965,1749582633292,-345.0,0.00017685,2]
[365289967,1749582633301,-320.0,0.00017689,2]
[365289970,1749582633311,-250.0,0.00017691,2]
[365289973,1749582633320,-500.0,0.00017712,2]
[365289976,1749582633330,-823.65867184,0.00017742,2]
[365290449,1749582638149,-234.2891596,0.00017423,2]
[365290451,1749582638159,-174.10278541,0.00017423,2]
[365290453,1749582638168,-516.34132816,0.00017742,2]
[365290455,1749582638177,-508.0,0.00017748,2]
[365290457,1749582638187,-560.72,0.00017753,2]
[365290459,1749582638196,-490.0,0.00017753,2]
[365290461,1749582638205,-490.0,0.00017753,2]
[365290463,1749582638215,-644.43,0.00017753,2]
[365290465,1749582638224,-490.0,0.00017753,2]
[365290466,1749582638233,-490.0,0.00017753,2]
[365290468,1749582638243,-3015.3,0.00017753,2]
[365290470,1749582638253,-490.0,0.00017753,2]
[365290472,1749582638269,-555.0,0.0001778,2]
[365290474,1749582638279,-500.0,0.00017808,2]
[365290476,1749582638289,-425.95670423,0.00017808,2]
[365290478,1749582638298,-201.0,0.00017821,3]
[365290479,1749582638308,-1854.0,0.00017829,2]
[365290481,1749582638318,-280.51,0.0001783,2]
[365290483,1749582638328,-201.81742788,0.000179,2]
[365290485,1749582638338,-723.0,0.00017916,2]
[365290487,1749582638347,-560.72,0.00017917,2]
[365290489,1749582638356,-490.0,0.00017917,2]
[365290491,1749582638366,-490.0,0.00017917,2]
[365290493,1749582638376,-644.43,0.00017917,2]
[365290495,1749582638385,-490.0,0.00017917,2]
[365290497,1749582638394,-490.0,0.00017917,2]
[365290499,1749582638404,-3015.3,0.00017917,2]
[365290500,1749582638414,-542.57458873,0.00017917,2]
[365290502,1749582638427,-420.0,0.00017963,2]
[365290504,1749582638437,-3812.50800599,0.00017982,2]
[365290507,1749582638449,-414.49109401,0.00017982,2]
[365290509,1749582638458,-1236.74832599,0.00017982,2]
[365290511,1749582638471,-253.066,0.00017982,2]
[365290517,1749582638522,-3599.95327401,0.00017982,2]
[365290519,1749582638532,-201.81742785,0.00017983,2]
[365290521,1749582638541,-1680.0,0.00018053,2]
[365290523,1749582638550,-201.81742785,0.00018067,2]
[365290524,1749582638559,-166.34,0.00018068,2]
[365290527,1749582638569,-250.0,0.00018081,2]
[365290529,1749582638579,-600.0,0.00018082,4]
[365290531,1749582638588,-560.72,0.00018082,2]
[365290533,1749582638598,-490.0,0.00018082,2]
[365290535,1749582638608,-490.0,0.00018082,2]
[365290537,1749582638618,-644.43,0.00018082,2]
[365290539,1749582638627,-490.0,0.00018082,2]
[365290540,1749582638636,-490.0,0.00018082,2]
[365290543,1749582638646,-3015.3,0.00018082,2]
[365290545,1749582638657,-158.68632718,0.00018146,2]
[365290547,1749582638667,-201.81742785,0.0001815,2]
[365290549,1749582638677,-1159.0,0.00018167,2]
[365290551,1749582638686,-500.0,0.00018219,2]
[365290553,1749582638696,-987.65733639,0.00018221,2]
[365290555,1749582638707,-201.81742785,0.00018233,2]
[365290557,1749582638717,-560.72,0.00018246,2]
[365290559,1749582638726,-176.90752569,0.00018246,2]
[365290561,1749582638735,-490.0,0.00018246,2]
[365290563,1749582638745,-644.43,0.00018246,2]
[365290565,1749582638755,-615.640001,0.00018246,2]
[365290567,1749582638767,-490.0,0.00018246,2]
[365290569,1749582638777,-3015.3,0.00018246,2]
[365290571,1749582638786,-4085.0,0.00018272,2]
[365290573,1749582638796,-155.0,0.00018272,2]
[365290575,1749582638805,-7064.0,0.00018272,2]
[365290577,1749582638814,-883.0,0.00018272,2]
[365290579,1749582638823,-1000.0,0.00018281,2]
[365290581,1749582638832,-2500.0,0.00018281,2]
[365290582,1749582638842,-201.81742785,0.00018317,2]
[365290585,1749582638852,-150.0,0.00018321,2]
[365290586,1749582638861,-150.0,0.00018321,2]
[365290588,1749582638870,-150.0,0.00018321,2]
[365290590,1749582638880,-154.33,0.00018321,2]
[365290592,1749582638889,-150.161,0.00018321,2]
[365290594,1749582638899,-945.0,0.00018321,2]
[365290596,1749582638907,-3330.0,0.00018321,2]
[365290598,1749582638917,-637.0,0.00018321,2]
[365290600,1749582638926,-802.0,0.00018321,2]
[365290602,1749582638935,-2001.0,0.00018321,2]
[365290603,1749582638943,-558.0,0.00018321,2]
[365290605,1749582638953,-1275.0,0.00018321,2]
[365290606,1749582638962,-927.0,0.00018321,2]
[365290608,1749582638971,-590.0,0.00018321,2]
[365290610,1749582638980,-1256.0,0.00018321,2]
[365290611,1749582638990,-1000.0,0.00018351,2]
[365290612,1749582638999,-151.0,0.00018351,2]
[365290613,1749582639008,-1957.856,0.00018351,2]
[365290614,1749582639018,-153.22322197,0.00018351,2]
[365290615,1749582639028,-1500.0,0.00018351,2]
[365290616,1749582639037,-1500.0,0.00018351,2]
[365290617,1749582639047,-500.0,0.00018351,2]
[365290618,1749582639056,-501.93098402,0.00018351,2]
[365290619,1749582639065,-500.0,0.00018351,2]
[365290620,1749582639074,-81.64953886,0.00018351,2]
[365290621,1749582639085,-386.36588603,0.00018351,2]
[365290622,1749582639097,-31.98457511,0.00018351,2]
[365290623,1749582639106,-500.0,0.00018351,2]
[365290624,1749582639115,-500.0,0.00018351,2]
[365290625,1749582639124,-255.30836092,0.00018351,2]
[365290626,1749582639134,-785.90071411,0.00018351,2]
[365290627,1749582639143,-151.0,0.00018351,2]
[365290628,1749582639152,-151.0,0.00018351,2]
[365290629,1749582639161,-151.0,0.00018351,2]
[365290630,1749582639170,-207.4,0.00018351,2]
[365290631,1749582639179,-151.0,0.00018351,2]
[365290632,1749582639189,-987.65733633,0.00018394,2]
[365290633,1749582639198,-201.0,0.00018399,4]
[365290634,1749582639208,-201.81742785,0.000184,2]
[365290635,1749582639218,-2030.296672,0.00018406,2]
[365290636,1749582639228,-560.72,0.0001841,2]
[365290637,1749582639237,-490.0,0.0001841,2]
[365290638,1749582639246,-644.43,0.0001841,2]
[365290639,1749582639256,-490.0,0.0001841,2]
[365290640,1749582639267,-3015.3,0.0001841,2]
[365290641,1749582639277,-1037.00642053,0.00018438,2]
[365290642,1749582639287,-2105.41764886,0.00018461,2]
[365290643,1749582639296,-201.81742785,0.00018483,2]
[365290644,1749582639305,-2183.31810187,0.00018516,2]
[365290645,1749582639315,-201.81742785,0.00018567,2]
[365290646,1749582639324,-987.65733633,0.00018567,2]
[365290647,1749582639334,-2264.10087164,0.00018571,2]
[365290648,1749582639344,-560.72,0.00018575,2]
[365290649,1749582639353,-490.0,0.00018575,2]
[365290650,1749582639363,-644.43,0.00018575,2]
[365290655,1749582639572,-490.0,0.00018575,2]
[365290657,1749582639582,-3015.3,0.00018575,2]
[365290658,1749582639592,-2347.87260389,0.00018626,2]
[365290659,1749582639602,-201.81742785,0.0001865,2]
[365290660,1749582639612,-2434.74389024,0.00018681,2]
[365290661,1749582639622,-299.89,0.000187,2]
[365290662,1749582639633,-201.81742785,0.00018733,2]
[365290663,1749582639643,-2524.82941417,0.00018736,2]
[365290664,1749582639653,-500.0,0.00018738,2]
[365290665,1749582639662,-560.72,0.00018739,2]
[365290666,1749582639672,-490.0,0.00018739,2]
[365290667,1749582639682,-644.43,0.00018739,2]
[365290668,1749582639692,-490.0,0.00018739,2]
[365290669,1749582639701,-3015.3,0.00018739,2]
[365290670,1749582639712,-987.65733633,0.0001874,2]
[365290672,1749582639726,-2618.2481025,0.00018791,2]
[365290674,1749582639736,-201.81742785,0.00018817,2]
[365290676,1749582639746,-2715.12328229,0.00018846,2]
[365290678,1749582639756,-200.0,0.000189,6]
[365290680,1749582639767,-201.81742785,0.000189,2]
[365290682,1749582639777,-2815.58284374,0.00018901,2]
[365290684,1749582639786,-500.0,0.00018903,2]
[365290686,1749582639796,-560.72,0.00018904,2]
[365290688,1749582639805,-490.0,0.00018904,2]
[365290690,1749582639815,-644.43,0.00018904,2]
[365290692,1749582639825,-490.0,0.00018904,2]
[365290695,1749582639835,-3015.3,0.00018904,2]
[365290697,1749582639844,-987.65733633,0.00018913,2]
[365290699,1749582639854,-286.07306769,0.00018956,2]
[365290701,1749582639864,-178.59374483,0.00018968,2]
[365290703,1749582639873,-201.0,0.00018977,5]
[365290704,1749582639883,-201.81742785,0.00018983,2]
[365290706,1749582639892,-500.0,0.00019,6]
[365290708,1749582639901,-156.08806021,0.00019014,2]
[365290710,1749582639910,-201.81742785,0.00019067,2]
[365290712,1749582639920,-560.72,0.00019068,2]
[365290714,1749582639929,-1846.835,0.00019068,2]
[365290716,1749582639938,-436.46485178,0.00019068,2]
[365290718,1749582639948,-644.43,0.00019068,2]
[365290721,1749582639959,-165.15587011,0.00019068,2]
[365290723,1749582639978,-3015.3,0.00019068,2]
[365290725,1749582639987,-1499.72,0.00019068,2]
[365290727,1749582639996,-437.52144222,0.00019078,2]
[365290728,1749582640005,-162.00149915,0.00019078,2]
[365290731,1749582640016,-987.65733633,0.00019087,2]
[365290733,1749582640025,-500.0,0.00019099,2]
[365290734,1749582640035,-1000.0,0.000191,2]
[365290736,1749582640044,-26415.318,0.000191,2]
[365290738,1749582640053,-1000.0,0.000191,2]
[365290740,1749582640062,-700.0,0.000191,6]
[365290742,1749582640071,-201.81742785,0.0001915,2]
[365290744,1749582640080,-437.52144221,0.00019156,2]
[365290746,1749582640089,-151.0,0.00019178,2]
[365290748,1749582640099,-482.34307467,0.00019178,2]
[365290750,1749582640108,-500.0,0.00019178,2]
[365290752,1749582640117,-500.0,0.00019178,2]
[365290754,1749582640127,-500.0,0.00019178,2]
[365290756,1749582640136,-500.0,0.00019178,2]
[365290758,1749582640145,-500.0,0.00019178,2]
[365290760,1749582640155,-500.0,0.00019178,2]
[365290762,1749582640164,-500.0,0.00019178,2]
[365290764,1749582640174,-500.0,0.00019178,2]
[365290766,1749582640183,-324.87194128,0.00019178,2]
[365290768,1749582640195,-500.0,0.00019178,2]
[365290770,1749582640205,-500.0,0.00019178,2]
[365290772,1749582640214,-500.0,0.00019178,2]
[365290774,1749582640223,-500.0,0.00019178,2]
[365290776,1749582640232,-500.0,0.00019178,2]
[365290778,1749582640249,-500.0,0.00019178,2]
[365290780,1749582640259,-500.0,0.00019178,2]
[365290782,1749582640269,-500.0,0.00019178,2]
[365290784,1749582640278,-500.0,0.00019178,2]
[365290786,1749582640288,-500.0,0.00019178,2]
[365290788,1749582640297,-500.0,0.00019178,2]
[365290790,1749582640306,-500.0,0.00019178,2]
[365290792,1749582640315,-500.0,0.00019178,2]
[365290794,1749582640324,-500.0,0.00019178,2]
[365290796,1749582640333,-500.0,0.00019178,2]
[365290798,1749582640342,-500.0,0.00019178,2]
[365290800,1749582640352,-500.0,0.00019178,2]
[365290802,1749582640361,-500.0,0.00019178,2]
[365290804,1749582640370,-500.0,0.00019178,2]
[365290806,1749582640380,-500.0,0.00019178,2]
[365290808,1749582640390,-500.0,0.00019178,2]
[365290810,1749582640399,-500.0,0.00019178,2]
[365290812,1749582640408,-500.0,0.00019178,2]
[365290814,1749582640420,-500.0,0.00019178,2]
[365290816,1749582640429,-500.0,0.00019178,2]
[365290818,1749582640438,-500.0,0.00019178,2]
[365290820,1749582640447,-151.0,0.00019178,2]
[365290822,1749582640457,-1000.0,0.00019178,2]
[365290824,1749582640465,-1000.0,0.00019178,2]
[365290826,1749582640474,-1000.0,0.00019178,2]
[365290827,1749582640483,-1000.0,0.00019178,2]
[365290829,1749582640492,-1000.0,0.00019178,2]
[365290832,1749582640503,-1000.0,0.00019178,2]
[365290833,1749582640513,-1000.0,0.00019178,2]
[365290835,1749582640522,-1000.0,0.00019178,2]
[365290837,1749582640531,-1000.0,0.00019178,2]
[365290839,1749582640540,-1000.0,0.00019178,2]
[365290841,1749582640550,-1000.0,0.00019178,2]
[365290843,1749582640559,-1000.0,0.00019178,2]
[365290845,1749582640568,-869.0,0.00019178,2]
[365290847,1749582640577,-1000.0,0.00019178,2]
[365290849,1749582640587,-1000.0,0.00019178,2]
[365290851,1749582640596,-1000.0,0.00019178,2]
[365290853,1749582640606,-1000.0,0.00019178,2]
[365290855,1749582640616,-1000.0,0.00019178,2]
[365290857,1749582640627,-1000.0,0.00019178,2]
[365290859,1749582640636,-1000.0,0.00019178,2]
[365290861,1749582640646,-1000.0,0.00019178,2]
[365290863,1749582640656,-1000.0,0.00019178,2]
[365290865,1749582640666,-1000.0,0.00019178,2]
[365290867,1749582640675,-1000.0,0.00019178,2]
[365290869,1749582640685,-1000.0,0.00019178,2]
[365290871,1749582640696,-1000.0,0.00019178,2]
[365290873,1749582640705,-1000.0,0.00019178,2]
[365290875,1749582640714,-1000.0,0.00019178,2]
[365290877,1749582640725,-1000.0,0.00019178,2]
[365290879,1749582640734,-1000.0,0.00019178,2]
[365290881,1749582640744,-1000.0,0.00019178,2]
[365290883,1749582640753,-1000.0,0.00019178,2]
[365290885,1749582640763,-1000.0,0.00019178,2]
[365290887,1749582640772,-1000.0,0.00019178,2]
[365290889,1749582640783,-1000.0,0.00019178,2]
[365290891,1749582640793,-1000.0,0.00019178,2]
[365290893,1749582640803,-1000.0,0.00019178,2]
[365290895,1749582640812,-1000.0,0.00019178,2]
[365290897,1749582640823,-1000.0,0.00019178,2]
[365290898,1749582640832,-1000.0,0.00019178,2]
[365290900,1749582640842,-1000.0,0.00019178,2]
[365290902,1749582640852,-270.08,0.00019178,2]
[365290903,1749582640860,-156.08806021,0.00019178,2]
[365290905,1749582640871,-1000.0,0.000192,7]
[365290907,1749582640880,-1395.256432,0.00019207,2]
[365290909,1749582640889,-509.0,0.00019232,2]
[365290911,1749582640899,-560.72,0.00019232,2]
[365290912,1749582640909,-644.43,0.00019232,2]
[365290914,1749582640918,-3015.3,0.00019232,2]
[365290916,1749582640928,-201.81742785,0.00019233,2]
[365290917,1749582640937,-500.0,0.00019233,2]
[365290919,1749582640947,-200.0,0.00019233,2]
[365290921,1749582640956,-437.52144221,0.00019234,2]
[365290923,1749582640966,-82.87402692,0.0001926,2]
[365290925,1749582640980,-395.94494902,0.0001926,2]
[365290927,1749582640991,-508.83836039,0.0001926,2]
[365290928,1749582641001,-718.69273286,0.000193,7]
[365290930,1749582641015,-481.30726714,0.000193,7]
[365290932,1749582641025,-128.55922757,0.000193,2]
[365290939,1749582641092,-853.0,0.00018272,2]
[365290941,1749582641102,-55.69435049,0.000193,2]
[365290943,1749582641114,-815.74642194,0.000193,2]
[365290945,1749582641123,-437.52144221,0.00019312,2]
[365290946,1749582641132,-30.61418536,0.00019317,2]
[365290949,1749582641148,-171.20324249,0.00019317,2]
[365290951,1749582641158,-156.08806021,0.00019342,2]
[365290952,1749582641168,-178.59374483,0.00019373,2]
[365290954,1749582641177,-437.52144221,0.0001939,2]
[365290956,1749582641186,-560.72,0.00019397,2]
[365290958,1749582641196,-644.43,0.00019397,2]
[365290960,1749582641205,-3015.3,0.00019397,2]
[365290962,1749582641214,-5300.0,0.000194,4]
[365290963,1749582641223,-200.0,0.000194,7]
[365290965,1749582641232,-201.81742785,0.000194,2]
[365290967,1749582641240,-987.65733633,0.00019433,2]
[365290968,1749582641249,-500.0,0.00019441,2]
[365290970,1749582641258,-500.0,0.00019448,2]
[365290972,1749582641270,-1000.0,0.00019448,2]
[365290974,1749582641279,-437.52144221,0.00019467,2]
[365290976,1749582641288,-201.81742785,0.00019483,2]
[365290977,1749582641297,-162.00149915,0.00019489,2]
[365290979,1749582641306,-152.0,0.0001949,6]
[365290981,1749582641315,-200.0,0.000195,7]
[365290982,1749582641323,-156.08806021,0.00019507,2]
[365290984,1749582641333,-200.0,0.0001951,2]
[365290986,1749582641342,-437.52144221,0.00019545,2]
[365290988,1749582641352,-201.0,0.00019554,5]
[365290990,1749582641361,-560.72,0.00019561,2]
[365290992,1749582641371,-644.43,0.00019561,2]
[365290994,1749582641380,-3015.3,0.00019561,2]
[365290996,1749582641390,-201.81742785,0.00019567,2]
[365290997,1749582641400,-1499.72,0.0001959,2]
[365290999,1749582641409,-990.97282202,0.00019599,2]
[365291001,1749582641419,-150.0,0.00019599,2]
[365291003,1749582641431,-1112.7641155,0.00019599,2]
[365291005,1749582641440,-151.0,0.00019599,2]
[365291007,1749582641450,-150.0,0.00019599,2]
[365291009,1749582641460,-13302.11861491,0.00019599,2]
[365291011,1749582641471,-150.0,0.00019599,2]
[365291012,1749582641480,-15427.54664663,0.00019599,2]
[365291014,1749582641489,-150.0,0.00019599,2]
[365291016,1749582641500,-6015.25348039,0.00019599,2]
[365291018,1749582641510,-500.0,0.00019599,2]
[365291020,1749582641521,-557.03241692,0.00019599,2]
[365291022,1749582641530,-1071.61832488,0.000196,2]
[365291024,1749582641539,-1510.78234027,0.000196,2]
[365291025,1749582641548,-2474.23757724,0.000196,2]
[365291027,1749582641557,-200.0,0.000196,7]
[365291029,1749582641567,-42020.64713216,0.000196,2]
[365291031,1749582641576,-987.65733633,0.00019606,2]
[365291032,1749582641586,-437.52144221,0.00019623,2]
[365291034,1749582641595,-587.0,0.00019631,2]
[365291036,1749582641605,-200.0,0.00019643,2]
[365291038,1749582641614,-201.81742785,0.0001965,2]
[365291040,1749582641623,-1000.0,0.00019657,2]
[365291042,1749582641632,-156.08806021,0.00019671,2]
[365291044,1749582641641,-278.05609054,0.00019687,2]
[365291045,1749582641650,-1000.0,0.00019695,2]
[365291047,1749582641659,-1000.0,0.00019698,2]
[365291049,1749582641669,-10013.0,0.000197,2]
[365291051,1749582641677,-200.0,0.000197,7]
[365291053,1749582641686,-437.52144221,0.00019701,2]
[365291054,1749582641696,-150.0,0.00019703,2]
[365291056,1749582641705,-1000.0,0.00019713,2]
[365291058,1749582641716,-156.587,0.0001972,2]
[365291060,1749582641726,-215.0738,0.0001972,2]
[365291062,1749582641735,-560.72,0.00019726,2]
[365291063,1749582641744,-644.43,0.00019726,2]
[365291065,1749582641754,-3015.3,0.00019726,2]
[365291067,1749582641763,-156.587,0.00019726,2]
[365291069,1749582641776,-201.81742785,0.00019733,2]
[365291071,1749582641787,-238.47490402,0.00019751,2]
[365291073,1749582641798,-1000.0,0.00019755,2]
[365291075,1749582641811,-223.78579082,0.00019757,2]
[365291078,1749582641824,-200.0,0.00019761,2]
[365291080,1749582641835,-500.0,0.00019778,2]
[365291081,1749582641845,-224.49259573,0.00019778,2]
[365291083,1749582641856,-178.59374483,0.00019778,2]
[365291085,1749582641867,-160.30486295,0.00019779,2]
[365291088,1749582641878,-290.07859868,0.00019779,2]
[365291090,1749582641891,-437.52144221,0.00019779,2]
[365291092,1749582641902,-987.65733633,0.00019779,2]
[365291094,1749582641913,-1404.55475078,0.00019779,2]
[365291096,1749582641925,-200.0,0.0001979,2]
[365291098,1749582641945,-1000.0,0.00019792,2]
[365291100,1749582641969,-150.0,0.00019794,2]
[365291102,1749582641989,-290.07859865,0.00019799,2]
[365291104,1749582641999,-18590.21,0.000198,2]
[365291107,1749582642010,-1000.0,0.000198,2]
[365291109,1749582642022,-1000.0,0.000198,2]
[365291111,1749582642032,-1000.0,0.000198,2]
[365291113,1749582642042,-1000.0,0.000198,2]
[365291115,1749582642051,-1000.0,0.000198,2]
[365291117,1749582642062,-1000.0,0.000198,2]
[365291119,1749582642073,-1000.0,0.000198,2]
[365291120,1749582642085,-1000.0,0.000198,2]
[365291123,1749582642096,-1000.0,0.000198,2]
[365291125,1749582642108,-1000.0,0.000198,2]
[365291127,1749582642119,-1000.0,0.000198,2]
[365291129,1749582642130,-151.0,0.000198,2]
[365291131,1749582642141,-790.0,0.000198,7]
[365291133,1749582642153,-11267.41742101,0.000198,2]
[365291136,1749582642164,-1000.0,0.00019802,2]
[365291138,1749582642176,-11186.42483916,0.0001981,2]
[365291139,1749582642187,-531.5,0.0001981,2]
[365291140,1749582642199,-1000.0,0.00019813,2]
[365291141,1749582642210,-201.81742785,0.00019817,2]
[365291142,1749582642220,-150.0,0.00019817,2]
[365291143,1749582642233,-290.07859865,0.00019819,2]
[365291144,1749582642244,-150.0,0.00019823,2]
[365291145,1749582642255,-2351.0,0.00019828,2]
[365291146,1749582642267,-156.08806021,0.00019836,2]
[365291147,1749582642279,-290.07859865,0.0001984,2]
[365291148,1749582642290,-1404.55475078,0.0001984,2]
[365291149,1749582642301,-1000.0,0.00019843,2]
[365291150,1749582642312,-290.07859865,0.0001986,2]